[Event "FIDE WY-U16 Olympiad 2022"]
[Site "Nakhchivan"]
[Date "2022.10.05"]
[Round "4.3"]
[White "Orujov, Farid"]
[Black "Ozkan, Taha"]
[Result "0-1"]
[ECO "C07"]
[WhiteElo "2266"]
[BlackElo "2299"]
[Annotator "TA"]
[PlyCount "116"]
[EventDate "2022.10.02"]
[EventType "team-tourn"]
[EventCountry "AZE"]
[SourceTitle "playchess.com"]
[Source "ChessBase"]
[SourceQuality "1"]
[BlackTeam "Turkey"]
[BlackTeamCountry "TUR"]
[TimeControl "40/5400+30:1800+30"]

{[%evp 9,116,18,18,0,-22,0,0,0,-12,-22,-8,-61,0,0,0,-2,0,-4,-7,-26,-20,-31,-40,-117,-112,-109,-117,-115,-123,-113,-112,-116,-113,-120,-110,-123,-123,-216,-210,-211,-209,-211,-193,-192,-191,-185,-200,-192,-182,-183,-180,-205,-171,-163,-132,-175,-177,-190,-180,-200,-180,-232,-233,-215,-201,-200,-177,-267,-107,-297,-287,-360,-332,-379,-344,-412,-394,-639,-531,-500,-515,-457,-460,-706,-469,-758,-550,-583,-570,-551,-544,-2207,-1038,-1038,-1030,-994,-994,-975,-929,-963,-818,-2571,-2259,-1993,-1838,-5106,-5106,-29988,-29989]} 1. e4 {[%emt 0:00:02]} e6 {[%emt 0:00:04]} 2. d4 {[%emt 0:00:07]} d5 {[%emt 0:00:04]} 3. Nd2 {[%emt 0:00:03]} c5 {[%emt 0:00:05]} 4. exd5 {[%emt 0:00:04]} Qxd5 {[%emt 0:00:04]} 5. Ngf3 {[%emt 0:00:05]} cxd4 {[%emt 0:00:06]} 6. g3 {[%emt 0:00:01] C07: French Tarrasch: 3...c5, 4 Ngf3 and 4 exd5 Qxd5.} (6. Bc4 Qd6 7. O-O) 6... Nc6 {[%emt 0:01:07]} 7. Bg2 {[%emt 0:00:02] [#]} Qb5 $146 {[%emt 0:03:30]} ({Predecessor:} 7... e5 8. O-O Bg4 9. Re1 Nge7 10. h3 Bxf3 11. Nxf3 Qd6 12. c3 d3 13. Qb3 f5 14. Nxe5 Nxe5 15. Bf4 {1-0 (15) Sadhwani,R (2616)-Erigaisi,A (2660) Chess.com INT 2022}) 8. a4 {[%emt 0:00:13] The position is equal.} Qa6 {[%emt 0:02:44]} 9. Bf1 {[%emt 0:00:01]} Qa5 {[%emt 0:00:30]} 10. Bb5 {[%emt 0:00:02]} (10. Bg2 $11) 10... Bd7 {[%emt 0:00:41]} ({Black should play} 10... a6 $15 11. Bxc6+ bxc6) 11. O-O $11 {[%emt 0:07:54][%cal Of3d4]} a6 {[%emt 0:02:38]} 12. Nc4 {[%emt 0:18:36]} Qd8 {[%emt 0:00:22]} 13. Bxc6 {[%emt 0:02:11]} Bxc6 {[%emt 0:00:05]} 14. Nce5 {[%emt 0:11:43]} (14. Nxd4 {feels hotter.} Bd5 15. Ne5 Bd6 16. Re1) 14... Bxf3 {[%emt 0:05:47]} 15. Qxf3 {[%emt 0:08:39][%csl Ge5][%cal Rf3f7]} Qc7 {[%emt 0:00:36][%csl LRc2,LRe5]} 16. Qe4 {[%emt 0:18:49]} ({White should try} 16. Qe2 $15) 16... Nf6 $17 {[%emt 0:06:07]} 17. Qxd4 {[%emt 0:04:43] [#]} Bc5 $1 {[%emt 0:00:45]} 18. Qf4 {[%emt 0:01:34]} Bd6 $36 {[%emt 0:00:40][%csl LRc2,LRe5][%mdl 2048] Black is in control.} 19. Re1 {[%emt 0:00:59]} O-O {[%emt 0:01:02]} 20. Qd4 {[%emt 0:04:03]} Bxe5 {[%emt 0:13:48]} 21. Qxe5 {[%emt 0:03:37]} Qxc2 {[%emt 0:00:13]} 22. Bg5 {[%emt 0:02:28]} Nd5 {[%emt 0:01:06]} ({Inferior is} 22... Ng4 23. Qf4 h6 24. Qxg4 $15) 23. Rac1 {[%emt 0:02:58]} (23. a5 $17) 23... Qxa4 $19 {[%emt 0:02:00]} 24. Re4 {[%emt 0:10:32]} Qd7 {[%emt 0:01:08] [#] And now ...f6 would win.} 25. Rd1 {[%emt 0:00:55]} Rfe8 {[%emt 0:10:35]} 26. Rg4 {[%emt 0:00:52]} f5 {[%emt 0:00:16]} 27. Rgd4 {[%emt 0:00:37]} Rac8 {[%emt 0:00:38]} 28. Bd2 {[%emt 0:00:03]} Qc7 {[%emt 0:00:23]} 29. Qe2 {[%emt 0:00:49]} Qb6 {[%emt 0:01:26]} 30. Qe5 {[%emt 0:01:17]} Nf6 {[%emt 0:03:36]} 31. Bc3 {[%emt 0:00:57][%cal Od4d7]} Qc5 {[%emt 0:02:46]} 32. Qe2 {[%emt 0:00:53]} Nd5 {[%emt 0:04:01]} 33. Be1 {[%emt 0:00:36]} Qe7 {[%emt 0:00:52]} 34. h4 {[%emt 0:00:32]} f4 {[%emt 0:00:19]} 35. Bd2 {[%emt 0:00:31]} (35. Re4 $142 Qf7 36. Rd3) 35... fxg3 {[%emt 0:00:31]} 36. fxg3 {[%emt 0:00:01]} Qc7 {[%emt 0:01:30]} 37. Kh2 {[%emt 0:00:27]} h6 {[%emt 0:07:46]} 38. Re4 {[%emt 0:00:33]} (38. Rf1 $142) 38... e5 {[%emt 0:00:38]} (38... Nf6 $19 {and Black stays clearly on top.} 39. Rc1 Qd7) 39. Re1 $2 {[%emt 0:00:56] Loses the game.} (39. Rc1 $17 {keeps fighting.} Qd6 40. Rxe5 Qxe5 41. Qxe5 Rxe5 42. Rxc8+ Kf7 43. Kh3) 39... Nf6 {[%emt 0:00:10]} ({But not} 39... Qc2 $2 40. Kh3 $19) 40. Rb4 {[%emt 0:00:32]} b5 {[%emt 0:00:45]} 41. Bc3 {[%emt 0:06:54]} Qc5 {[%emt 0:02:18]} 42. Rd1 {[%emt 0:09:09]} h5 {[%emt 0:02:39]} 43. Rf1 $2 {[%emt 0:04:02]} (43. Kg2) 43... Ng4+ {[%emt 0:01:39]} 44. Rxg4 {[%emt 0:01:17]} hxg4 {[%emt 0:00:05]} 45. Qxg4 {[%emt 0:00:02]} Qc4 {[%emt 0:00:12] Prevents Qe4.} 46. Qf5 {[%emt 0:00:59]} (46. Rf4 $142 Qa2 47. Qd7) 46... Qe6 {[%emt 0:00:38]} 47. Qg5 {[%emt 0:02:18]} (47. Qxe6+ $142 Rxe6 48. Kg2) 47... Rf8 {[%emt 0:01:20]} 48. Rxf8+ {[%emt 0:03:34]} Rxf8 {[%emt 0:00:10]} 49. Bxe5 {[%emt 0:01:00][%csl Ge5][%cal Rg5g7][%mdl 4096] Endgame KQR-KQB} Rf7 {[%emt 0:00:32] Hoping for ...Re7.} 50. Bc3 {[%emt 0:04:12]} b4 {[%emt 0:01:31]} (50... Qe2+ $142 51. Kh3 Qf1+ 52. Kg4 b4) 51. Bd4 {[%emt 0:00:53]} Qe2+ {[%emt 0:00:11]} 52. Kh3 {[%emt 0:00:22]} Qf1+ {[%emt 0:00:22]} 53. Kh2 {[%emt 0:00:01]} Qf5 {[%emt 0:00:12] Threatens to win with ...Qxg5.} 54. Qe3 {[%emt 0:00:26]} a5 {[%emt 0:00:46] Strongly threatening ...Rc7.} 55. b3 {[%emt 0:00:58]} Rc7 {[%emt 0:00:34]} 56. Kg1 {[%emt 0:01:33]} Kh7 {[%emt 0:00:49] ...Rc2 is the strong threat.} 57. Bb6 {[%emt 0:00:50]} Rc2 {[%emt 0:00:54] ( -> ...Qd5)} 58. h5 {[%emt 0:00:24]} Qd5 {[%emt 0:00:36] Weighted Error Value: White=0.75/Black=0.36} 0-1

[Event "FIDE WY-U16 Olympiad 2022"]
[Site "Nakhchivan"]
[Date "2022.10.05"]
[Round "4.3"]
[White "Amilal Munkhdalai"]
[Black "Zhao, Jeffrey Renfei"]
[Result "1-0"]
[ECO "B52"]
[WhiteElo "2200"]
[BlackElo "1807"]
[Annotator "TA"]
[PlyCount "51"]
[EventDate "2022.10.02"]
[EventType "team-tourn"]
[EventCountry "AZE"]
[SourceTitle "playchess.com"]
[Source "ChessBase"]
[SourceQuality "1"]
[WhiteTeam "Mongolia"]
[BlackTeam "Canada"]
[WhiteTeamCountry "MGL"]
[BlackTeamCountry "CAN"]
[TimeControl "40/5400+30:1800+30"]

{[%evp 11,51,14,19,25,10,8,10,0,3,-2,2,0,8,22,19,12,41,42,43,49,75,81,107,88,108,106,100,35,70,67,96,98,203,189,677,611,670,602,647,585,830,335]} 1. e4 {[%emt 0:00:03]} c5 {[%emt 0:00:03]} 2. Nf3 {[%emt 0:00:05]} d6 {[%emt 0:00:03]} 3. Bb5+ {[%emt 0:00:04]} Bd7 {[%emt 0:00:03]} 4. Bxd7+ {[%emt 0:00:06]} Nxd7 {[%emt 0:00:04]} 5. O-O {[%emt 0:00:15]} Ngf6 {[%emt 0:00:05]} 6. Qe2 {[%emt 0:00:15]} Rc8 {[%emt 0:00:05]} 7. c3 {[%emt 0:04:19] B52: Sicilian: Moscow Variation with 3...Bd7.} e6 {[%emt 0:00:05]} 8. d3 {[%emt 0:01:56]} Be7 {[%emt 0:02:29]} 9. Nbd2 {[%emt 0:03:04] The position is equal.} O-O {[%emt 0:10:36]} 10. a4 {[%emt 0:01:20] [#]} b6 $146 {[%emt 0:18:03]} ({Predecessor:} 10... Qc7 11. Re1 b6 12. Nf1 h6 13. Bf4 Rfe8 14. h3 a6 15. N1d2 Bf8 16. Bg3 Qb7 {½-½ (61) Markovic,M (2495)-Marjanovic,S (2425) Nis 1994}) 11. b3 {[%emt 0:02:13]} Ne5 {[%emt 0:08:57]} 12. Nxe5 {[%emt 0:03:14]} dxe5 {[%emt 0:00:41]} 13. Nc4 {[%emt 0:00:12]} Qc7 {[%emt 0:03:04]} 14. f4 {[%emt 0:01:31]} exf4 {[%emt 0:03:53]} 15. Bxf4 {[%emt 0:00:07]} Qc6 {[%emt 0:01:15] [#]} 16. Rf3 $1 {[%emt 0:04:17]} Nd7 {[%emt 0:35:14]} 17. Rh3 {[%emt 0:01:54]} Rfd8 {[%emt 0:06:06]} 18. Rf1 {[%emt 0:03:38] Black must now prevent Ne5.} Nf8 {[%emt 0:05:23]} 19. Qh5 {[%emt 0:12:11]} (19. Qg4 $16 f5 20. Qf3 (20. exf5 exf5 21. Qxf5 Qg6 $16)) 19... Qe8 {[%emt 0:01:21]} 20. Qg4 {[%emt 0:01:39]} f6 {[%emt 0:01:45]} 21. Rg3 $40 {[%emt 0:00:52][%csl Gg3][%cal Rg4g7][%mdl 128] [#] White attacks with force. White has more active pieces.} g6 {[%emt 0:00:01]} (21... g5 $16 {was necessary.}) 22. Bh6 {[%emt 0:00:36]} f5 $2 {[%emt 0:01:26]} (22... Rc6 23. h4 e5) 23. exf5 $18 {[%emt 0:00:27] White is clearly winning.} exf5 {[%emt 0:00:01]} 24. Qxf5 {[%emt 0:00:48] aiming for Qe5.} Bh4 {[%emt 0:00:59]} 25. Rg4 {[%emt 0:00:14]} Rd7 {[%emt 0:00:37]} 26. Qxf8+ {[%emt 0:00:36] Weighted Error Value: White=0.12 (very precise) /Black=0.54} (26. g3 $142) 1-0

[Event "FIDE WY-U16 Olympiad 2022"]
[Site "Nakhchivan"]
[Date "2022.10.05"]
[Round "4.4"]
[White "Mustu, Hatice Asli"]
[Black "Abdinova, Narmin"]
[Result "1/2-1/2"]
[ECO "D30"]
[WhiteElo "1896"]
[BlackElo "1810"]
[Annotator "NA RC COMBH"]
[PlyCount "105"]
[EventDate "2022.10.02"]
[EventType "team-tourn"]
[EventCountry "AZE"]
[SourceTitle "playchess.com"]
[Source "ChessBase"]
[SourceQuality "1"]
[WhiteTeam "Turkey"]
[BlackTeam "Azerbaijan"]
[WhiteTeamCountry "TUR"]
[BlackTeamCountry "AZE"]
[TimeControl "40/5400+30:1800+30"]

1. d4 {[%emt 0:00:03]} d5 {[%emt 0:00:15]} 2. c4 {[%emt 0:00:06]} e6 {[%emt 0:00:18]} 3. Nf3 {[%emt 0:00:05]} Nf6 {[%emt 0:00:09]} 4. g3 {[%emt 0:00:10]} c6 {[%emt 0:02:48]} 5. Bg2 {[%emt 0:00:15]} Nbd7 {[%emt 0:00:30]} 6. Qc2 {[%emt 0:01:06]} Ne4 {[%emt 0:03:12]} 7. Nfd2 {[%emt 0:06:51]} f5 {[%emt 0:08:37]} 8. O-O {[%emt 0:19:35]} Be7 {[%emt 0:05:12]} 9. Nxe4 {[%emt 0:06:58]} fxe4 $11 {[%emt 0:00:25]} 10. f3 {[%emt 0:01:01]} exf3 {[%emt 0:00:48]} 11. exf3 {[%emt 0:17:49]} O-O {[%emt 0:10:26]} 12. Qe2 {[%emt 0:08:12]} Bf6 {[%emt 0:09:19]} 13. Rd1 {[%emt 0:03:28]} Re8 {[%emt 0:06:27]} 14. f4 {[%emt 0:03:06]} Nb6 {[%emt 0:05:50]} 15. c5 {[%emt 0:05:28]} Nd7 {[%emt 0:00:48]} 16. b4 {[%emt 0:04:05]} a5 {[%emt 0:11:04]} 17. Bh3 {[%emt 0:11:31]} axb4 {[%emt 0:05:57]} 18. Bb2 {[%emt 0:00:37]} b6 {[%emt 0:08:19]} 19. cxb6 {[%emt 0:03:29]} Nxb6 {[%emt 0:00:59]} 20. a3 {[%emt 0:01:25]} Ba6 {[%emt 0:02:57]} 21. Qc2 {[%emt 0:01:14]} bxa3 {[%emt 0:01:53]} 22. Nxa3 {[%emt 0:00:45]} Nc4 {[%emt 0:01:36]} 23. Nxc4 {[%emt 0:00:30]} Bxc4 {[%emt 0:00:01]} 24. Rxa8 {[%emt 0:00:36]} Qxa8 {[%emt 0:00:01]} 25. Re1 {[%emt 0:00:01]} Qa2 {[%emt 0:05:05]} 26. Qf2 {[%emt 0:03:13]} Bd3 {[%emt 0:03:55]} 27. Bxe6+ {[%emt 0:00:44]} Kh8 {[%emt 0:00:34]} 28. Bf5 {[%emt 0:01:34]} Rxe1+ {[%emt 0:00:55]} 29. Qxe1 {[%emt 0:00:08]} Be4 {[%emt 0:00:01]} 30. Qb4 {[%emt 0:00:53]} Kg8 {[%emt 0:06:35]} 31. Qb8+ {[%emt 0:00:28]} Kf7 {[%emt 0:00:08]} 32. Qb7+ {[%emt 0:00:21]} Be7 {[%emt 0:00:26]} 33. Bxe4 {[%emt 0:00:16]} dxe4 {[%emt 0:00:01]} 34. Kf2 {[%emt 0:00:08]} Qc4 {[%emt 0:00:30]} 35. Qb6 {[%emt 0:01:06]} Qc2+ {[%emt 0:00:17]} 36. Ke3 {[%emt 0:00:29]} Qd3+ {[%emt 0:00:03]} 37. Kf2 {[%emt 0:00:01]} Qc2+ {[%emt 0:00:46]} 38. Ke3 {[%emt 0:00:30]} Qd3+ {[%emt 0:00:01]} 39. Kf2 {[%emt 0:00:02]} e3+ {[%emt 0:00:59]} 40. Kg2 {[%emt 0:00:02]} e2 {[%emt 0:01:49]} 41. Qa5 {[%emt 0:30:32]} Qd1 {[%emt 0:30:26]} 42. Qf5+ {[%emt 0:00:15]} Kg8 {[%emt 0:00:37]} 43. Qe6+ {[%emt 0:00:37]} Kf8 {[%emt 0:00:13]} 44. Qc8+ {[%emt 0:01:50]} Kf7 {[%emt 0:00:03]} 45. Qf5+ {[%emt 0:00:04]} Ke8 {[%emt 0:00:50]} 46. Qc8+ {[%emt 0:00:08]} Kf7 {[%emt 0:00:40]} 47. Qf5+ {[%emt 0:00:05]} Kg8 {[%emt 0:00:33]} 48. Qe6+ {[%emt 0:00:09]} Kf8 {[%emt 0:00:12]} 49. Qc8+ {[%emt 0:00:09]} Kf7 {[%emt 0:00:48]} 50. Qf5+ {[%emt 0:00:06]} Bf6 {[%emt 0:00:36]} 51. Qd7+ {[%emt 0:00:14]} Kg6 {[%emt 0:00:31]} 52. Qg4+ {[%emt 0:00:14]} Kf7 {[%emt 0:00:33]} 53. Qd7+ {[%emt 0:00:06]} 1/2-1/2

[Event "FIDE WY-U16 Olympiad 2022"]
[Site "Nakhchivan"]
[Date "2022.10.05"]
[Round "4.4"]
[White "Jiang, Kate Yuhua"]
[Black "Khuslen, Erdenebayar"]
[Result "0-1"]
[ECO "B22"]
[WhiteElo "1649"]
[BlackElo "1590"]
[Annotator "NA RC COMBH"]
[PlyCount "138"]
[EventDate "2022.10.02"]
[EventType "team-tourn"]
[EventCountry "AZE"]
[SourceTitle "playchess.com"]
[Source "ChessBase"]
[SourceQuality "1"]
[WhiteTeam "Canada"]
[BlackTeam "Mongolia"]
[WhiteTeamCountry "CAN"]
[BlackTeamCountry "MGL"]
[TimeControl "40/5400+30:1800+30"]

1. e4 {[%emt 0:00:02]} c5 {[%emt 0:00:11]} 2. c3 {[%emt 0:00:02]} d5 {[%emt 0:00:52]} 3. exd5 {[%emt 0:00:02]} Qxd5 {[%emt 0:00:09]} 4. d4 {[%emt 0:00:01]} e6 {[%emt 0:00:42]} 5. Nf3 {[%emt 0:00:04]} Nf6 {[%emt 0:00:24]} 6. Bd3 {[%emt 0:00:02]} Nc6 {[%emt 0:00:55]} 7. O-O {[%emt 0:00:07]} Be7 {[%emt 0:00:27]} 8. Re1 {[%emt 0:00:09]} O-O {[%emt 0:01:01]} 9. Be3 {[%emt 0:00:05]} cxd4 {[%emt 0:02:39]} 10. cxd4 {[%emt 0:00:07]} b6 {[%emt 0:00:57]} 11. Nc3 {[%emt 0:00:10]} Qd6 {[%emt 0:00:28]} 12. a3 {[%emt 0:00:11]} Bb7 {[%emt 0:00:56]} 13. Qe2 {[%emt 0:00:40]} Rad8 {[%emt 0:01:31]} 14. Rad1 {[%emt 0:00:28]} Rfe8 {[%emt 0:00:58]} 15. Bg5 {[%emt 0:05:11]} g6 {[%emt 0:02:53]} 16. Bb5 {[%emt 0:05:09]} Qb8 {[%emt 0:08:27]} 17. Ne5 {[%emt 0:27:54]} Qc8 {[%emt 0:28:54]} 18. Qc4 {[%emt 0:08:24]} Nd5 {[%emt 0:14:28]} 19. Bxe7 {[%emt 0:02:55]} Ndxe7 {[%emt 0:00:26]} 20. Ne4 {[%emt 0:03:17]} Rf8 {[%emt 0:03:26]} 21. Qc3 {[%emt 0:14:17]} Nxe5 {[%emt 0:04:55]} 22. Nf6+ {[%emt 0:06:32]} Kg7 {[%emt 0:00:15]} 23. dxe5 {[%emt 0:00:10]} Qxc3 {[%emt 0:01:09]} 24. bxc3 {[%emt 0:00:02]} Nc6 {[%emt 0:02:39]} 25. f4 {[%emt 0:01:12]} Ne7 {[%emt 0:03:54]} 26. c4 {[%emt 0:03:28]} Nf5 {[%emt 0:01:22]} 27. Kf2 {[%emt 0:07:07]} h5 {[%emt 0:00:56]} 28. g3 {[%emt 0:01:08]} Rh8 {[%emt 0:01:11]} 29. Ba4 {[%emt 0:02:02]} Ba6 {[%emt 0:01:34]} 30. Bb5 {[%emt 0:01:44]} Bxb5 {[%emt 0:02:03]} 31. cxb5 {[%emt 0:00:01]} Nd6 {[%emt 0:00:55]} 32. a4 {[%emt 0:01:29]} Nc4 {[%emt 0:00:14]} 33. Ke2 {[%emt 0:04:58]} Nb2 {[%emt 0:03:39]} 34. Ra1 {[%emt 0:00:43]} Rd4 {[%emt 0:01:22]} 35. Ke3 {[%emt 0:02:23]} Rd3+ {[%emt 0:03:15]} 36. Kf2 {[%emt 0:00:40]} h4 {[%emt 0:01:31]} 37. g4 {[%emt 0:01:08]} Rd2+ {[%emt 0:01:05]} 38. Re2 {[%emt 0:01:05]} Nd3+ 39. Ke3 {[%emt 0:00:23]} Rxe2+ {[%emt 0:00:25]} 40. Kxe2 {[%emt 0:00:03]} Nxf4+ {[%emt 0:00:24]} 41. Ke3 {[%emt 0:32:03]} g5 {[%emt 0:31:31]} 42. Ne4 {[%emt 0:00:42]} Kg6 {[%emt 0:00:23]} 43. Rc1 {[%emt 0:00:00]} Rd8 {[%emt 0:00:00]} 44. Nd6 {[%emt 0:00:00]} f6 {[%emt 0:00:00]} 45. Rc8 {[%emt 0:00:00]} Rd7 {[%emt 0:00:00]} 46. Ke4 {[%emt 0:00:00]} Nd5 {[%emt 0:00:00]} 47. Kd4 {[%emt 0:00:00]} Ne7 {[%emt 0:00:00]} 48. Rf8 {[%emt 0:00:00]} Nd5 {[%emt 0:00:00]} 49. Re8 {[%emt 0:00:00]} Nf4 {[%emt 0:00:00]} 50. Rc8 {[%emt 0:00:00]} f5 {[%emt 0:00:00]} 51. Rg8+ {[%emt 0:00:00]} Kh6 {[%emt 0:00:00]} 52. gxf5 {[%emt 0:00:00]} exf5 {[%emt 0:00:00]} 53. Kc4 {[%emt 0:01:02]} Rc7+ {[%emt 0:00:04]} 54. Kb3 {[%emt 0:00:35]} Kh5 {[%emt 0:01:49]} 55. Nxf5 {[%emt 0:00:31]} Rc5 {[%emt 0:00:23]} 56. Ng7+ {[%emt 0:06:07]} Kg4 {[%emt 0:06:33]} 57. e6 {[%emt 0:00:01]} Re5 {[%emt 0:00:37]} 58. Re8 {[%emt 0:01:24]} Kh3 {[%emt 0:00:19]} 59. Kc3 {[%emt 0:00:41]} Kxh2 {[%emt 0:01:26]} 60. Kd4 {[%emt 0:00:02]} Re1 {[%emt 0:00:21]} 61. e7 {[%emt 0:00:33]} Ng6 {[%emt 0:00:08]} 62. Nf5 {[%emt 0:00:25]} Nxe7 {[%emt 0:01:34]} 63. Nxe7 {[%emt 0:00:39]} g4 {[%emt 0:01:18]} 64. Rg8 {[%emt 0:00:22]} g3 {[%emt 0:00:20]} 65. Nf5 {[%emt 0:00:17]} Rf1 {[%emt 0:01:02]} 66. Ke4 {[%emt 0:01:33]} Rxf5 {[%emt 0:01:16]} 67. Kxf5 {[%emt 0:00:46]} g2 {[%emt 0:00:30]} 68. Kf4 {[%emt 0:00:41]} h3 {[%emt 0:00:28]} 69. Kf3 {[%emt 0:00:29]} g1=Q 0-1

[Event "FIDE WY-U16 Olympiad 2022"]
[Site "Nakhchivan"]
[Date "2022.10.05"]
[Round "4.5"]
[White "Sapenov, Daniyal"]
[Black "Tarhan, Adar"]
[Result "1/2-1/2"]
[ECO "E06"]
[WhiteElo "2323"]
[BlackElo "2320"]
[Annotator "TA"]
[PlyCount "89"]
[EventDate "2022.10.02"]
[EventType "team-tourn"]
[EventCountry "AZE"]
[SourceTitle "playchess.com"]
[Source "ChessBase"]
[SourceQuality "1"]
[WhiteTeam "Kazakhstan"]
[BlackTeam "Turkey"]
[WhiteTeamCountry "KAZ"]
[BlackTeamCountry "TUR"]
[TimeControl "40/5400+30:1800+30"]

{[%evp 15,89,8,26,28,26,26,25,53,17,35,117,103,117,98,112,85,181,170,179,57,176,0,175,168,166,0,0,0,0,0,132,117,70,77,194,0,35,8,34,34,40,47,51,1,12,19,50,45,56,0,0,0,0,0,0,-8,0,0,0,0,0,0,0,0,0,0,0,0,0,0,0,0,0,-6,0,-6]} 1. d4 {[%emt 0:00:06]} d5 {[%emt 0:00:07]} 2. c4 {[%emt 0:00:09]} e6 {[%emt 0:00:03]} 3. Nf3 {[%emt 0:00:12]} Nf6 {[%emt 0:00:11]} 4. g3 {[%emt 0:00:49]} Be7 {[%emt 0:00:08]} 5. Bg2 {[%emt 0:00:11]} O-O {[%emt 0:00:05]} 6. Nc3 {[%emt 0:00:46]} dxc4 {[%emt 0:01:28]} 7. Ne5 {[%emt 0:00:07]} c5 {[%emt 0:01:02]} 8. dxc5 {[%emt 0:01:25]} Qc7 {[%emt 0:05:00]} 9. Nxc4 {[%emt 0:00:12] E06: Closed Catalan: Early deviations.} Qxc5 {[%emt 0:00:37]} 10. b3 $1 {[%emt 0:14:32][%mdl 4] aiming for Ba3. is now more promising than 10.Qb3.} Rd8 {[%emt 0:00:46]} 11. Ba3 {[%emt 0:00:31] White has an edge.} Rxd1+ {[%emt 0:06:25]} 12. Rxd1 {[%emt 0:00:05]} Qh5 {[%emt 0:03:44]} 13. Bxe7 $16 {[%emt 0:00:12] Intending Rd8+ and mate.} Nbd7 {[%emt 0:00:06]} 14. O-O {[%emt 0:04:48] [#]} h6 $146 {[%emt 0:01:41]} ({Predecessor:} 14... Ne8 15. Rd4 f6 16. Bb4 Ne5 17. Rh4 Qf7 18. Nxe5 fxe5 19. Ne4 a5 20. Ba3 a4 21. bxa4 {1-0 (32) Meier,G (2628)-Boensch,U (2516) Germany 2019}) 15. Rd3 {[%emt 0:11:49]} Ng4 {[%emt 0:03:41]} (15... b5 $16 {was necessary.}) 16. h3 $18 {[%emt 0:00:16] Active counter play!} Nge5 {[%emt 0:00:03]} 17. Nxe5 {[%emt 0:07:37]} (17. g4 $18 Qg6 18. Nxe5 Nxe5 19. Rd8+ Kh7 20. Bh4) 17... Nxe5 {[%emt 0:02:38]} (17... Qxe5 $14 18. Rc1 Kh7) 18. Rd8+ {[%emt 0:13:57]} Kh7 {[%emt 0:00:09]} 19. g4 {[%emt 0:04:17]} Qg6 {[%emt 0:00:06] [#]} 20. Rfd1 $2 {[%emt 0:00:04]} ({White must play} 20. Bh4 $1 $18) 20... Nc6 $11 {[%emt 0:07:55]} 21. Re8 {[%emt 0:01:08][%cal Bd8e8,Be8e7,Be7c7,Bc7c4,Bc4c6][%mdl 32] Strongly threatening Bxc6.} Nxe7 {[%emt 0:01:31]} 22. Rxe7 {[%emt 0:00:07]} Qf6 {[%emt 0:03:08]} (22... f5 $1 $11 {keeps the balance.}) 23. Be4+ {[%emt 0:00:19][%mdl 1024] White has strong compensation.} g6 {[%emt 0:00:05]} 24. Rc7 {[%emt 0:00:03]} Kg7 {[%emt 0:01:49] [#]} (24... Kg8 $16) 25. Bf3 $2 {[%emt 0:01:10]} (25. Nb5 $1 $18) 25... Qe5 {[%emt 0:01:17]} (25... e5 $5 {[%cal Rf6b6]}) 26. Rc4 {[%emt 0:00:11] White wants to play Rd8.} b5 {[%emt 0:00:36]} 27. Nxb5 {[%emt 0:00:39]} Rb8 {[%emt 0:01:03]} 28. Nxa7 {[%emt 0:01:10]} Bb7 {[%emt 0:03:06]} 29. Nc6 {[%emt 0:00:24]} (29. Rd7 $1 $14 Bxf3 30. exf3) 29... Bxc6 {[%emt 0:00:00]} 30. Rxc6 {[%emt 0:00:00]} Qb2 {[%emt 0:03:19]} 31. Rd7 {[%emt 0:08:02] Black must now prevent Rxe6.} Qxa2 {[%emt 0:00:36]} 32. Rcc7 {[%emt 0:02:04]} ({White should play} 32. Rxe6 $1 $14 Qxb3 33. Re3) 32... Qa1+ {[%emt 0:00:13] The position is equal.} 33. Kg2 {[%emt 0:00:07]} Qf6 {[%emt 0:00:04]} 34. Rb7 {[%emt 0:00:05]} Rxb7 {[%emt 0:01:26]} 35. Rxb7 {[%emt 0:00:06][%mdl 4096] Endgame KQ-KRB} Qd4 {[%emt 0:04:23]} 36. e3 {[%emt 0:00:54]} Qd3 {[%emt 0:00:13]} 37. b4 {[%emt 0:00:55][%cal Bb3b4,Bb4b5][%mdl 32]} e5 {[%emt 0:02:03] Hoping for ...e4.} 38. Bc6 {[%emt 0:01:05]} Qc4 {[%emt 0:00:32]} 39. b5 {[%emt 0:00:55] And now e4 would win.} Kf6 {[%emt 0:00:23]} 40. e4 {[%emt 0:02:17] Bd5 is the strong threat.} Kg5 $1 {[%emt 0:00:09]} 41. Bd5 {[%emt 0:31:39]} Qd3 {[%emt 0:30:16]} 42. Rxf7 {[%emt 0:00:44] White threatens b6 and mate.} Kh4 $1 {[%emt 0:00:11]} 43. Rf3 {[%emt 0:00:14]} Qxb5 {[%emt 0:00:08]} 44. Rb3 {[%emt 0:02:04]} Qe2 {[%emt 0:00:38]} 45. Re3 {[%emt 0:00:20] Weighted Error Value: White=0.23 (precise) /Black=0.23 (precise)} 1/2-1/2